[Event "SVK Amateur-ch 2020"]
[Site "Topolcany"]
[Date "2020.07.10"]
[Round "1.10"]
[White "Matejov, Jaroslav"]
[Black "Sabela, Pavol"]
[Result "1-0"]
[ECO "C41"]
[WhiteElo "2047"]
[BlackElo "1582"]
[Annotator "ChessBase"]
[PlyCount "48"]
[EventDate "2020.07.10"]
[EventType "swiss"]
[EventCountry "SVK"]
[SourceTitle "playchess.com"]
[Source "ChessBase"]
[SourceQuality "1"]
[TimeControl "3600+30"]

1. e4 {[%emt 0:00:32]} e5 {[%emt 0:00:00]} 2. Nf3 {[%emt 0:00:02]} d6 {[%emt 0:01:17]} 3. d4 {[%emt 0:00:00]} exd4 {[%emt 0:00:30]} 4. Nxd4 {[%emt 0:00:27]} Ne7 {[%emt 0:00:27]} 5. Bc4 {[%emt 0:00:49]} Ng6 {[%emt 0:00:49]} 6. f4 {[%emt 0:01:51]} Be7 {[%emt 0:00:23]} 7. O-O {[%emt 0:00:35]} c6 {[%emt 0:02:44]} 8. c3 {[%emt 0:02:36]} b5 {[%emt 0:01:23]} 9. Bb3 {[%emt 0:00:10]} a5 {[%emt 0:00:11]} 10. a4 {[%emt 0:00:33]} b4 {[%emt 0:00:52]} 11. Qh5 {[%emt 0:04:52]} O-O {[%emt 0:06:21]} 12. Be3 {[%emt 0:03:45]} c5 {[%emt 0:00:27]} 13. Nb5 {[%emt 0:02:24]} Bb7 {[%emt 0:00:37]} 14. Bd5 {[%emt 0:01:45]} Bxd5 {[%emt 0:00:30]} 15. Qxd5 {[%emt 0:00:11]} Ra6 {[%emt 0:00:57]} 16. Nd2 {[%emt 0:00:27]} Bf6 {[%emt 0:03:31]} 17. Rad1 {[%emt 0:01:15]} Rc6 {[%emt 0:04:55]} 18. Nc4 {[%emt 0:01:03]} bxc3 {[%emt 0:02:11]} 19. bxc3 {[%emt 0:00:19]} Qe7 {[%emt 0:02:36]} 20. Ncxd6 {[%emt 0:01:09]} Rd8 {[%emt 0:00:15]} 21. e5 {[%emt 0:00:16]} Nxe5 {[%emt 0:07:39]} 22. fxe5 {[%emt 0:00:34]} Bxe5 {[%emt 0:00:08]} 23. Nf5 {[%emt 0:01:06]} Qd7 {[%emt 0:08:57]} 24. Qxe5 {[%emt 0:00:27]} Qxd1 {[%emt 0:03:44]} 1-0

[Event "SVK Amateur-ch 2020"]
[Site "Topolcany"]
[Date "2020.07.10"]
[Round "1.11"]
[White "Varga, Marcell"]
[Black "Miciak, Emanuel"]
[Result "1-0"]
[ECO "B23"]
[WhiteElo "2150"]
[BlackElo "1847"]
[Annotator "RC"]
[PlyCount "63"]
[EventDate "2020.07.10"]
[EventType "swiss"]
[EventCountry "SVK"]
[SourceTitle "playchess.com"]
[Source "ChessBase"]
[SourceQuality "1"]
[TimeControl "3600+30"]

1. e4 {[%emt 0:00:00]} c5 {[%emt 0:00:00]} 2. Nc3 {[%emt 0:00:14]} d6 {[%emt 0:00:03]} 3. d3 {[%emt 0:01:01]} Nc6 {[%emt 0:00:40]} 4. Be3 {[%emt 0:00:16]} g6 {[%emt 0:00:51]} 5. Qd2 {[%emt 0:00:41]} Bg7 {[%emt 0:00:17]} 6. Nge2 {[%emt 0:02:09]} Nf6 {[%emt 0:01:22]} 7. Bh6 {[%emt 0:04:13]} O-O {[%emt 0:02:01]} 8. h4 {[%emt 0:01:25]} b5 {[%emt 0:15:19]} 9. h5 {[%emt 0:02:34]} Bxh6 {[%emt 0:00:28]} 10. Qxh6 {[%emt 0:00:24]} Nxh5 {[%emt 0:09:37]} 11. Nf4 {[%emt 0:01:28]} Nf6 {[%emt 0:05:06]} 12. Ncd5 {[%emt 0:00:31]} Re8 {[%emt 0:01:09]} 13. Nxf6+ {[%emt 0:04:58]} exf6 {[%emt 0:00:01]} 14. Qxh7+ {[%emt 0:00:15]} Kf8 {[%emt 0:00:02]} 15. Qh8+ {[%emt 0:00:49]} Ke7 {[%emt 0:00:02]} 16. Nd5+ {[%emt 0:00:11]} Ke6 {[%emt 0:04:45]} 17. Qxe8+ {[%emt 0:02:23]} Qxe8 {[%emt 0:00:57]} 18. Nc7+ {[%emt 0:00:09]} Kd7 {[%emt 0:00:15]} 19. Nxe8 {[%emt 0:00:14]} Kxe8 {[%emt 0:00:02]} 20. Rh8+ {[%emt 0:00:23]} Ke7 {[%emt 0:00:16]} 21. g3 {[%emt 0:00:24]} Nd4 {[%emt 0:01:21]} 22. O-O-O {[%emt 0:00:25]} b4 {[%emt 0:00:34]} 23. Bh3 {[%emt 0:00:45]} Bb7 {[%emt 0:00:04]} 24. Rxa8 {[%emt 0:00:14]} Bxa8 {[%emt 0:00:02]} 25. c3 {[%emt 0:01:54]} bxc3 {[%emt 0:00:27]} 26. bxc3 {[%emt 0:00:03]} Nb5 {[%emt 0:00:47]} 27. Kd2 {[%emt 0:00:26]} Bc6 {[%emt 0:00:41]} 28. Bc8 {[%emt 0:03:21]} Na3 {[%emt 0:02:09]} 29. Rh1 {[%emt 0:01:29]} Ba4 {[%emt 0:00:21]} 30. Bb7 {[%emt 0:00:33]} Be8 {[%emt 0:02:43]} 31. Bd5 {[%emt 0:00:26]} Nb5 {[%emt 0:00:13]} 32. Rb1 {[%emt 0:00:56]} 1-0

[Event "SVK Amateur-ch 2020"]
[Site "Topolcany"]
[Date "2020.07.10"]
[Round "1.11"]
[White "Sokol, Eduard"]
[Black "Stevik, Patrik"]
[Result "0-1"]
[ECO "D63"]
[WhiteElo "1571"]
[BlackElo "2047"]
[Annotator "ChessBase"]
[PlyCount "50"]
[EventDate "2020.07.10"]
[EventType "swiss"]
[EventCountry "SVK"]
[SourceTitle "playchess.com"]
[Source "ChessBase"]
[SourceQuality "1"]
[TimeControl "3600+30"]

1. Nf3 {[%emt 0:00:40]} Nf6 {[%emt 0:00:00]} 2. d4 {[%emt 0:00:35]} e6 {[%emt 0:00:00]} 3. c4 {[%emt 0:00:05]} d5 {[%emt 0:00:33]} 4. Nc3 {[%emt 0:00:19]} a6 {[%emt 0:00:22]} 5. Bg5 {[%emt 0:00:29]} Be7 {[%emt 0:00:12]} 6. e3 {[%emt 0:00:10]} O-O {[%emt 0:00:24]} 7. Be2 {[%emt 0:02:38]} dxc4 {[%emt 0:00:25]} 8. Bxc4 {[%emt 0:00:03]} b5 {[%emt 0:00:09]} 9. Bd3 {[%emt 0:00:09]} Bb7 {[%emt 0:00:09]} 10. O-O {[%emt 0:00:59]} Nbd7 {[%emt 0:01:11]} 11. Rc1 {[%emt 0:07:59]} c5 {[%emt 0:00:56]} 12. Be2 {[%emt 0:04:16]} Qb6 {[%emt 0:00:39]} 13. dxc5 {[%emt 0:11:18]} Nxc5 {[%emt 0:07:11]} 14. Ne5 {[%emt 0:03:26]} Rfd8 {[%emt 0:01:58]} 15. Qe1 {[%emt 0:03:02]} h6 {[%emt 0:02:20]} 16. Bxf6 {[%emt 0:07:48]} Bxf6 {[%emt 0:00:21]} 17. Ng4 {[%emt 0:00:19]} Be7 {[%emt 0:01:08]} 18. Ne5 {[%emt 0:01:22]} Rac8 {[%emt 0:02:14]} 19. Rd1 {[%emt 0:02:14]} b4 {[%emt 0:01:58]} 20. Rxd8+ {[%emt 0:01:12]} Rxd8 {[%emt 0:00:11]} 21. Nb1 {[%emt 0:02:25]} a5 {[%emt 0:00:55]} 22. Nd2 {[%emt 0:03:33]} Bf6 {[%emt 0:00:39]} 23. Nec4 {[%emt 0:02:18]} Qc7 {[%emt 0:01:01]} 24. Bf3 {[%emt 0:01:19]} Bxf3 {[%emt 0:00:31]} 25. Nxf3 {[%emt 0:00:12]} Nd3 {[%emt 0:00:08]} 0-1

[Event "SVK Amateur-ch 2020"]
[Site "Topolcany"]
[Date "2020.07.10"]
[Round "1.12"]
[White "Nadzamova, Viktoria"]
[Black "Krucay, Jozef"]
[Result "1-0"]
[ECO "C84"]
[WhiteElo "2046"]
[BlackElo "1562"]
[Annotator "ChessBase"]
[PlyCount "77"]
[EventDate "2020.07.10"]
[EventType "swiss"]
[EventCountry "SVK"]
[SourceTitle "playchess.com"]
[Source "ChessBase"]
[SourceQuality "1"]
[TimeControl "3600+30"]

1. e4 {[%emt 0:00:00]} e5 {[%emt 0:00:00]} 2. Nf3 {[%emt 0:00:00]} Nc6 {[%emt 0:00:00]} 3. Bb5 {[%emt 0:00:00]} d6 {[%emt 0:00:00]} 4. c3 {[%emt 0:00:26]} a6 {[%emt 0:00:00]} 5. Ba4 {[%emt 0:00:05]} b5 {[%emt 0:00:00]} 6. Bc2 {[%emt 0:00:11]} Nf6 {[%emt 0:01:56]} 7. O-O {[%emt 0:00:21]} Be7 {[%emt 0:00:12]} 8. a4 {[%emt 0:01:38]} b4 {[%emt 0:00:25]} 9. d4 {[%emt 0:01:28]} exd4 {[%emt 0:02:51]} 10. cxd4 {[%emt 0:00:25]} Bg4 {[%emt 0:00:18]} 11. Be3 {[%emt 0:01:56]} a5 {[%emt 0:00:43]} 12. h3 {[%emt 0:01:20]} Bh5 {[%emt 0:00:22]} 13. Nbd2 {[%emt 0:00:55]} h6 {[%emt 0:01:07]} 14. Rc1 {[%emt 0:02:11]} Na7 {[%emt 0:04:28]} 15. d5 {[%emt 0:09:35]} c5 {[%emt 0:01:27]} 16. dxc6 {[%emt 0:01:13]} Nxc6 {[%emt 0:00:04]} 17. Bd3 {[%emt 0:00:23]} Ne5 {[%emt 0:01:44]} 18. Bb5+ {[%emt 0:01:15]} Nfd7 {[%emt 0:00:03]} 19. g4 {[%emt 0:03:14]} Nxf3+ {[%emt 0:02:05]} 20. Qxf3 {[%emt 0:01:51]} Bg6 {[%emt 0:00:31]} 21. Nc4 {[%emt 0:00:34]} Rb8 {[%emt 0:03:01]} 22. e5 {[%emt 0:05:22]} O-O {[%emt 0:01:03]} 23. exd6 {[%emt 0:01:22]} Bf6 {[%emt 0:01:29]} 24. Rfd1 {[%emt 0:03:46]} Ne5 {[%emt 0:01:45]} 25. Nxe5 {[%emt 0:01:36]} Bxe5 {[%emt 0:00:09]} 26. b3 {[%emt 0:04:51]} Kh8 {[%emt 0:01:40]} 27. Rc5 {[%emt 0:05:45]} Bf6 {[%emt 0:01:46]} 28. d7 {[%emt 0:02:36]} Bc3 {[%emt 0:00:54]} 29. Bf4 {[%emt 0:01:14]} Qf6 {[%emt 0:05:07]} 30. Rc6 {[%emt 0:01:09]} Qh4 {[%emt 0:06:23]} 31. Bxb8 {[%emt 0:00:46]} Bf6 {[%emt 0:01:58]} 32. Rc8 {[%emt 0:01:58]} Rg8 {[%emt 0:00:35]} 33. Bc7 {[%emt 0:00:22]} Qg5 {[%emt 0:00:40]} 34. Rxg8+ {[%emt 0:00:36]} Kxg8 {[%emt 0:00:03]} 35. Qa8+ {[%emt 0:00:10]} Kh7 {[%emt 0:00:06]} 36. d8=Q {[%emt 0:00:30]} Bxd8 {[%emt 0:00:36]} 37. Rxd8 {[%emt 0:00:58]} Bc2 {[%emt 0:02:00]} 38. Rh8+ {[%emt 0:00:18]} Kg6 {[%emt 0:00:02]} 39. Qc6+ {[%emt 0:00:09]} 1-0

[Event "SVK Amateur-ch 2020"]
[Site "Topolcany"]
[Date "2020.07.10"]
[Round "1.13"]
[White "Dubnicka, Ferdinand"]
[Black "Brnusak, Tomas"]
[Result "0-1"]
[ECO "B30"]
[WhiteElo "1552"]
[BlackElo "2044"]
[Annotator "ChessBase"]
[PlyCount "92"]
[EventDate "2020.07.10"]
[EventType "swiss"]
[EventCountry "SVK"]
[SourceTitle "playchess.com"]
[Source "ChessBase"]
[SourceQuality "1"]
[TimeControl "3600+30"]

1. e4 {[%emt 0:00:00]} c5 {[%emt 0:00:00]} 2. Nf3 {[%emt 0:00:08]} e6 {[%emt 0:00:25]} 3. Bc4 {[%emt 0:00:33]} Nc6 {[%emt 0:00:31]} 4. c3 {[%emt 0:00:44]} Nge7 {[%emt 0:00:54]} 5. d3 {[%emt 0:00:48]} g6 {[%emt 0:00:51]} 6. Be3 {[%emt 0:00:39]} b6 {[%emt 0:01:36]} 7. Nbd2 {[%emt 0:00:41]} Bg7 {[%emt 0:01:20]} 8. Nf1 {[%emt 0:02:10]} O-O {[%emt 0:00:16]} 9. Ng3 {[%emt 0:00:08]} d5 {[%emt 0:01:10]} 10. Bb3 {[%emt 0:00:40]} Qc7 {[%emt 0:03:03]} 11. O-O {[%emt 0:00:43]} Rd8 {[%emt 0:00:47]} 12. Qc1 {[%emt 0:00:14]} Ba6 {[%emt 0:01:35]} 13. Rd1 {[%emt 0:02:03]} dxe4 {[%emt 0:01:52]} 14. dxe4 {[%emt 0:00:31]} Na5 {[%emt 0:01:01]} 15. Bf4 {[%emt 0:02:29]} e5 {[%emt 0:01:45]} 16. Be3 {[%emt 0:00:35]} c4 {[%emt 0:02:12]} 17. Bc2 {[%emt 0:01:03]} Nb7 {[%emt 0:01:35]} 18. Rd2 {[%emt 0:03:22]} Nc5 {[%emt 0:03:14]} 19. Qf1 {[%emt 0:01:24]} Rxd2 {[%emt 0:04:54]} 20. Bxd2 {[%emt 0:01:06]} Rd8 {[%emt 0:01:21]} 21. Be3 {[%emt 0:00:18]} Nd3 {[%emt 0:01:31]} 22. Rb1 {[%emt 0:03:31]} h6 {[%emt 0:03:52]} 23. h3 {[%emt 0:00:26]} f5 {[%emt 0:00:57]} 24. exf5 {[%emt 0:03:22]} gxf5 {[%emt 0:00:51]} 25. Nh5 {[%emt 0:01:01]} Ng6 {[%emt 0:02:49]} 26. Nxg7 {[%emt 0:00:25]} Qxg7 {[%emt 0:00:30]} 27. Rd1 {[%emt 0:01:56]} Bb7 {[%emt 0:08:42]} 28. Ne1 {[%emt 0:01:00]} f4 {[%emt 0:02:26]} 29. Nxd3 {[%emt 0:03:45]} fxe3 {[%emt 0:06:14]} 30. Nc1 {[%emt 0:02:03]} exf2+ {[%emt 0:00:34]} 31. Qxf2 {[%emt 0:00:47]} Rxd1+ {[%emt 0:00:15]} 32. Bxd1 {[%emt 0:00:10]} Nf4 {[%emt 0:00:07]} 33. Bg4 {[%emt 0:01:05]} h5 {[%emt 0:02:30]} 34. Bf5 {[%emt 0:01:24]} Qg5 {[%emt 0:02:10]} 35. Qc2 {[%emt 0:01:12]} Nxg2 {[%emt 0:00:48]} 36. Bh7+ {[%emt 0:00:19]} Kg7 {[%emt 0:00:16]} 37. Qf5 {[%emt 0:00:25]} Qxc1+ {[%emt 0:00:11]} 38. Kh2 {[%emt 0:00:25]} Qf4+ {[%emt 0:00:19]} 39. Kg1 {[%emt 0:00:35]} Qxf5 {[%emt 0:00:12]} 40. Bxf5 {[%emt 0:00:17]} Nf4 {[%emt 0:00:23]} 41. Kh2 {[%emt 0:00:16]} Kf6 {[%emt 0:00:08]} 42. Bc2 {[%emt 0:00:12]} h4 {[%emt 0:00:13]} 43. Bd1 {[%emt 0:00:33]} e4 {[%emt 0:00:07]} 44. Bg4 {[%emt 0:00:06]} e3 {[%emt 0:00:06]} 45. Kg1 {[%emt 0:00:08]} Bg2 {[%emt 0:00:14]} 46. b3 {[%emt 0:00:43]} Bxh3 {[%emt 0:00:07]} 0-1

[Event "SVK Amateur-ch 2020"]
[Site "Topolcany"]
[Date "2020.07.10"]
[Round "1.14"]
[White "Zetocha, Adrian"]
[Black "Janik, Marek Tobias"]
[Result "1-0"]
[ECO "D38"]
[WhiteElo "2041"]
[BlackElo "1549"]
[Annotator "ChessBase"]
[PlyCount "71"]
[EventDate "2020.07.10"]
[EventType "swiss"]
[EventCountry "SVK"]
[SourceTitle "playchess.com"]
[Source "ChessBase"]
[SourceQuality "1"]
[TimeControl "3600+30"]

1. d4 {[%emt 0:00:00]} d5 {[%emt 0:00:00]} 2. c4 {[%emt 0:00:12]} e6 {[%emt 0:00:00]} 3. Nc3 {[%emt 0:00:13]} Nf6 {[%emt 0:00:09]} 4. cxd5 {[%emt 0:00:22]} exd5 {[%emt 0:00:19]} 5. Bg5 {[%emt 0:00:11]} Bb4 {[%emt 0:00:18]} 6. e3 {[%emt 0:08:42]} h6 {[%emt 0:00:32]} 7. Bxf6 {[%emt 0:01:56]} Qxf6 {[%emt 0:00:09]} 8. Qb3 {[%emt 0:02:39]} Bxc3+ {[%emt 0:00:57]} 9. bxc3 {[%emt 0:03:48]} c6 {[%emt 0:00:59]} 10. Nf3 {[%emt 0:00:43]} Nd7 {[%emt 0:01:18]} 11. Bd3 {[%emt 0:03:15]} O-O {[%emt 0:01:34]} 12. O-O {[%emt 0:01:10]} Re8 {[%emt 0:01:20]} 13. Rfe1 {[%emt 0:03:20]} Nb6 {[%emt 0:07:11]} 14. a4 {[%emt 0:01:56]} Rb8 {[%emt 0:02:21]} 15. a5 {[%emt 0:08:18]} Nd7 {[%emt 0:01:59]} 16. e4 {[%emt 0:03:00]} dxe4 {[%emt 0:01:09]} 17. Bxe4 {[%emt 0:00:20]} Nf8 {[%emt 0:02:48]} 18. Bh7+ {[%emt 0:02:43]} Kxh7 {[%emt 0:01:49]} 19. Rxe8 {[%emt 0:00:17]} Be6 {[%emt 0:05:20]} 20. Qc2+ {[%emt 0:00:32]} Bf5 {[%emt 0:00:15]} 21. Qe2 {[%emt 0:00:07]} Rxe8 {[%emt 0:01:05]} 22. Qxe8 {[%emt 0:00:11]} Ne6 {[%emt 0:01:40]} 23. a6 {[%emt 0:02:52]} b6 {[%emt 0:00:07]} 24. Qxc6 {[%emt 0:00:35]} Qg6 {[%emt 0:07:18]} 25. Nh4 {[%emt 0:03:08]} Qg5 {[%emt 0:00:13]} 26. Nxf5 {[%emt 0:00:26]} Qxf5 {[%emt 0:00:07]} 27. Re1 {[%emt 0:01:49]} Nf4 {[%emt 0:01:33]} 28. Qe4 {[%emt 0:00:16]} Qxe4 {[%emt 0:00:34]} 29. Rxe4 {[%emt 0:00:08]} Nd5 {[%emt 0:00:06]} 30. c4 {[%emt 0:01:12]} Nf6 {[%emt 0:00:12]} 31. Re7 {[%emt 0:00:07]} Kg6 {[%emt 0:00:12]} 32. Rxa7 {[%emt 0:00:09]} Ne4 {[%emt 0:00:34]} 33. Rb7 {[%emt 0:00:19]} Kf5 {[%emt 0:00:43]} 34. a7 {[%emt 0:00:15]} Nd6 {[%emt 0:00:12]} 35. Rc7 {[%emt 0:00:18]} g6 {[%emt 0:00:15]} 36. a8=Q {[%emt 0:00:11]} 1-0

[Event "SVK Amateur-ch 2020"]
[Site "Topolcany"]
[Date "2020.07.10"]
[Round "1.15"]
[White "Jdaieh, Adel"]
[Black "Tropp, Frantisek"]
[Result "0-1"]
[ECO "C29"]
[WhiteElo "1541"]
[BlackElo "2040"]
[Annotator "ChessBase"]
[PlyCount "108"]
[EventDate "2020.07.10"]
[EventType "swiss"]
[EventCountry "SVK"]
[SourceTitle "playchess.com"]
[Source "ChessBase"]
[SourceQuality "1"]
[TimeControl "3600+30"]

1. e4 {[%emt 0:00:00]} e5 {[%emt 0:00:00]} 2. Nc3 {[%emt 0:00:00]} Nf6 {[%emt 0:00:00]} 3. f4 {[%emt 0:00:17]} d5 {[%emt 0:00:55]} 4. fxe5 {[%emt 0:02:52]} Nxe4 {[%emt 0:00:38]} 5. Nf3 {[%emt 0:02:40]} Be7 {[%emt 0:02:54]} 6. d3 {[%emt 0:08:18]} Bh4+ {[%emt 0:04:28]} 7. g3 {[%emt 0:01:52]} Nxc3 {[%emt 0:01:40]} 8. bxc3 {[%emt 0:00:08]} Be7 {[%emt 0:00:06]} 9. Bg2 {[%emt 0:01:10]} Be6 {[%emt 0:02:13]} 10. Nd4 {[%emt 0:00:38]} Qd7 {[%emt 0:03:41]} 11. O-O {[%emt 0:02:10]} Nc6 {[%emt 0:06:03]} 12. Nxe6 {[%emt 0:00:39]} Qxe6 {[%emt 0:00:17]} 13. d4 {[%emt 0:01:41]} Na5 {[%emt 0:02:15]} 14. Qh5 {[%emt 0:04:01]} c6 {[%emt 0:00:51]} 15. Bh3 {[%emt 0:03:32]} Qg6 {[%emt 0:00:08]} 16. Qg4 {[%emt 0:00:59]} Qxg4 {[%emt 0:03:13]} 17. Bxg4 {[%emt 0:00:02]} O-O {[%emt 0:00:17]} 18. Be2 {[%emt 0:01:52]} f6 {[%emt 0:02:21]} 19. exf6 {[%emt 0:03:42]} Rxf6 {[%emt 0:01:42]} 20. Rxf6 {[%emt 0:02:55]} Bxf6 {[%emt 0:00:13]} 21. Ba3 {[%emt 0:03:18]} Re8 {[%emt 0:01:08]} 22. Kf1 {[%emt 0:04:25]} Nc4 {[%emt 0:04:57]} 23. Bxc4 {[%emt 0:00:56]} dxc4 {[%emt 0:00:30]} 24. Re1 {[%emt 0:00:30]} Rxe1+ {[%emt 0:01:26]} 25. Kxe1 {[%emt 0:00:02]} Kf7 {[%emt 0:00:11]} 26. Ke2 {[%emt 0:01:35]} Ke6 {[%emt 0:00:13]} 27. Bc1 {[%emt 0:01:58]} Kd5 {[%emt 0:02:52]} 28. Kf3 {[%emt 0:01:28]} c5 {[%emt 0:01:20]} 29. Bd2 {[%emt 0:08:47]} cxd4 {[%emt 0:00:24]} 30. cxd4 {[%emt 0:00:16]} Bxd4 {[%emt 0:00:16]} 31. Bb4 {[%emt 0:02:19]} b5 {[%emt 0:00:55]} 32. c3 {[%emt 0:02:12]} Be5 {[%emt 0:01:45]} 33. h4 {[%emt 0:00:30]} h5 {[%emt 0:00:14]} 34. Ba5 {[%emt 0:01:37]} g6 {[%emt 0:00:24]} 35. Bb4 {[%emt 0:00:41]} Bc7 {[%emt 0:00:07]} 36. Ba3 {[%emt 0:04:02]} a5 {[%emt 0:02:07]} 37. Bc1 {[%emt 0:01:23]} b4 {[%emt 0:01:36]} 38. cxb4 {[%emt 0:02:45]} axb4 {[%emt 0:00:05]} 39. g4 {[%emt 0:00:24]} Kd4 {[%emt 0:01:27]} 40. gxh5 {[%emt 0:00:26]} gxh5 {[%emt 0:00:08]} 41. Ke2 {[%emt 0:00:09]} Bg3 {[%emt 0:00:17]} 42. Bg5 {[%emt 0:00:42]} Kc3 {[%emt 0:02:47]} 43. Bd2+ {[%emt 0:00:57]} Kb2 {[%emt 0:01:14]} 44. Bxb4 {[%emt 0:00:09]} Kxa2 {[%emt 0:00:31]} 45. Bc3 {[%emt 0:00:24]} Bxh4 {[%emt 0:00:13]} 46. Kf1 {[%emt 0:00:13]} Kb3 {[%emt 0:00:07]} 47. Bd2 {[%emt 0:00:50]} Kc2 {[%emt 0:01:07]} 48. Bf4 {[%emt 0:00:50]} Bf6 {[%emt 0:00:04]} 49. Ke2 {[%emt 0:00:23]} c3 {[%emt 0:00:54]} 50. Kf3 {[%emt 0:00:33]} Kd1 {[%emt 0:00:25]} 51. Kg2 {[%emt 0:00:39]} c2 {[%emt 0:00:04]} 52. Kf1 {[%emt 0:00:08]} Bc3 {[%emt 0:00:11]} 53. Kg2 {[%emt 0:00:35]} Bd2 {[%emt 0:00:07]} 54. Kf1 {[%emt 0:00:52]} Bxf4 {[%emt 0:00:11]} 0-1

[Event "SVK Amateur-ch 2020"]
[Site "Topolcany"]
[Date "2020.07.10"]
[Round "1.16"]
[White "Meers, Hubert"]
[Black "Cernicky, Jan"]
[Result "1-0"]
[ECO "B00"]
[WhiteElo "2037"]
[BlackElo "1538"]
[Annotator "ChessBase"]
[PlyCount "37"]
[EventDate "2020.07.10"]
[EventType "swiss"]
[EventCountry "SVK"]
[SourceTitle "playchess.com"]
[Source "ChessBase"]
[SourceQuality "1"]
[TimeControl "3600+30"]

1. e4 {[%emt 0:00:00]} b6 {[%emt 0:00:00]} 2. d4 {[%emt 0:00:00]} Bb7 {[%emt 0:00:08]} 3. Bd3 {[%emt 0:00:00]} e6 {[%emt 0:00:17]} 4. Nd2 {[%emt 0:00:04]} Nf6 {[%emt 0:00:10]} 5. Ngf3 {[%emt 0:00:39]} c5 {[%emt 0:01:02]} 6. c3 {[%emt 0:00:11]} Be7 {[%emt 0:00:47]} 7. O-O {[%emt 0:00:27]} O-O {[%emt 0:00:06]} 8. Qe2 {[%emt 0:00:43]} d6 {[%emt 0:03:24]} 9. Rd1 {[%emt 0:01:41]} a6 {[%emt 0:04:39]} 10. Nf1 {[%emt 0:02:06]} b5 {[%emt 0:01:06]} 11. dxc5 {[%emt 0:00:15]} d5 {[%emt 0:02:06]} 12. Ng3 {[%emt 0:15:28]} Bxc5 {[%emt 0:01:22]} 13. e5 {[%emt 0:00:46]} Nfd7 {[%emt 0:00:59]} 14. Bxh7+ {[%emt 0:00:44]} Kh8 {[%emt 0:05:49]} 15. Bc2 {[%emt 0:01:44]} Be7 {[%emt 0:02:35]} 16. Qd3 {[%emt 0:01:20]} g6 {[%emt 0:00:16]} 17. Qe3 {[%emt 0:00:10]} Nc6 {[%emt 0:03:18]} 18. Qh6+ {[%emt 0:00:12]} Kg8 {[%emt 0:00:04]} 19. Nh5 {[%emt 0:00:09]} 1-0

[Event "SVK Amateur-ch 2020"]
[Site "Topolcany"]
[Date "2020.07.10"]
[Round "1.17"]
[White "Ralik, Oliver"]
[Black "Garban, Mario"]
[Result "0-1"]
[ECO "C96"]
[WhiteElo "1529"]
[BlackElo "2031"]
[Annotator "ChessBase"]
[PlyCount "94"]
[EventDate "2020.07.10"]
[EventType "swiss"]
[EventCountry "SVK"]
[SourceTitle "playchess.com"]
[Source "ChessBase"]
[SourceQuality "1"]
[TimeControl "3600+30"]

1. e4 {[%emt 0:00:00]} e5 {[%emt 0:00:00]} 2. Nf3 {[%emt 0:00:01]} Nc6 {[%emt 0:00:12]} 3. Bb5 {[%emt 0:00:09]} a6 {[%emt 0:00:18]} 4. Ba4 {[%emt 0:00:08]} Nf6 {[%emt 0:01:01]} 5. O-O {[%emt 0:00:12]} b5 {[%emt 0:02:00]} 6. Bb3 {[%emt 0:00:08]} Be7 {[%emt 0:01:13]} 7. Re1 {[%emt 0:00:18]} d6 {[%emt 0:02:25]} 8. c3 {[%emt 0:00:16]} O-O {[%emt 0:05:21]} 9. h3 {[%emt 0:00:07]} Na5 {[%emt 0:02:08]} 10. Bc2 {[%emt 0:03:47]} c5 {[%emt 0:01:03]} 11. d4 {[%emt 0:00:07]} cxd4 {[%emt 0:04:04]} 12. cxd4 {[%emt 0:00:16]} Nc6 {[%emt 0:00:29]} 13. d5 {[%emt 0:02:23]} Nb4 {[%emt 0:02:36]} 14. Bb3 {[%emt 0:01:37]} a5 {[%emt 0:00:16]} 15. a3 {[%emt 0:01:34]} Na6 {[%emt 0:00:17]} 16. Bc2 {[%emt 0:00:26]} Nc5 {[%emt 0:03:39]} 17. Nbd2 {[%emt 0:03:59]} Bd7 {[%emt 0:09:20]} 18. Nf1 {[%emt 0:00:43]} b4 {[%emt 0:06:05]} 19. Ng3 {[%emt 0:02:45]} Qb6 {[%emt 0:02:35]} 20. Bg5 {[%emt 0:03:32]} b3 {[%emt 0:01:29]} 21. Bd3 {[%emt 0:02:43]} Nxd3 {[%emt 0:03:11]} 22. Qxd3 {[%emt 0:00:09]} a4 {[%emt 0:01:31]} 23. Qe3 {[%emt 0:01:10]} Qxe3 {[%emt 0:01:03]} 24. Bxe3 {[%emt 0:00:10]} Rfc8 {[%emt 0:01:52]} 25. Red1 {[%emt 0:03:27]} Rc2 {[%emt 0:02:09]} 26. Rd2 {[%emt 0:03:14]} Rac8 {[%emt 0:01:07]} 27. Rxc2 {[%emt 0:00:55]} Rxc2 {[%emt 0:00:07]} 28. Rb1 {[%emt 0:01:33]} Bb5 {[%emt 0:02:05]} 29. Ne1 {[%emt 0:01:15]} Rc8 {[%emt 0:02:20]} 30. Nf5 {[%emt 0:06:10]} Bf8 {[%emt 0:02:21]} 31. Ng3 {[%emt 0:00:30]} g6 {[%emt 0:02:23]} 32. f3 {[%emt 0:02:07]} h5 {[%emt 0:00:55]} 33. Kf2 {[%emt 0:00:38]} Be7 {[%emt 0:02:19]} 34. Ne2 {[%emt 0:00:38]} Bd8 {[%emt 0:01:12]} 35. Nc3 {[%emt 0:01:24]} Bd7 {[%emt 0:00:25]} 36. Nd3 {[%emt 0:01:53]} Ne8 {[%emt 0:01:27]} 37. g3 {[%emt 0:01:05]} Ba5 {[%emt 0:00:53]} 38. Nb4 {[%emt 0:04:31]} Bxb4 {[%emt 0:00:25]} 39. axb4 {[%emt 0:00:26]} Rb8 {[%emt 0:00:06]} 40. b5 {[%emt 0:05:15]} Bxb5 {[%emt 0:00:18]} 41. Nxb5 {[%emt 0:00:30]} Rxb5 {[%emt 0:00:13]} 42. Rc1 {[%emt 0:03:32]} Rb7 {[%emt 0:00:33]} 43. Bd2 {[%emt 0:02:05]} Nc7 {[%emt 0:01:51]} 44. f4 {[%emt 0:03:47]} f6 {[%emt 0:00:47]} 45. Ke2 {[%emt 0:01:27]} Nb5 {[%emt 0:00:49]} 46. Kd1 {[%emt 0:02:30]} a3 {[%emt 0:00:44]} 47. Bb4 {[%emt 0:02:35]} a2 {[%emt 0:00:43]} 0-1